bitfinex/quotes_BTCUSD_20240602
["timestamp","ask_amount","ask_price","bid_price","bid_amount"]
[1717361400534,0.00486,67779.0,67778.0,1.27784528]
[1717361401570,0.00486,67779.0,67778.0,1.21160875]
[1717361403405,0.00486,67779.0,67778.0,1.25572783]
[1717361403606,0.00486,67779.0,67778.0,1.33225509]
[1717361404391,0.00486,67779.0,67778.0,1.35434249]
[1717361404802,0.00486,67779.0,67778.0,1.35433217]
[1717361407224,0.00486,67779.0,67778.0,1.31021309]
[1717361411606,0.00486,67779.0,67778.0,1.31021306]
[1717361418907,0.00486,67779.0,67778.0,1.78282474]
[1717361419116,0.00486,67779.0,67778.0,1.80494219]
[1717361419559,0.00486,67779.0,67778.0,1.73870566]
[1717361421012,0.00486,67779.0,67778.0,1.82702104]
[1717361423556,0.00486,67779.0,67778.0,1.73870566]
[1717361424780,0.00486,67779.0,67778.0,1.73869818]
[1717361427131,0.00486,67779.0,67778.0,1.58319818]
[1717361428616,1e-08,67779.0,67778.0,1.58319818]
[1717361428828,1e-08,67779.0,67778.0,2.26939859]
[1717361429032,1e-08,67783.0,67782.0,1.621857]
[1717361429258,1e-08,67783.0,67782.0,2.16290918]
[1717361429478,1e-08,67783.0,67782.0,2.22899913]
[1717361430795,1e-08,67783.0,67782.0,2.26599913]
[1717361432515,1e-08,67783.0,67782.0,2.23690918]
[1717361432728,1e-08,67783.0,67782.0,2.30299913]
[1717361433173,1e-08,67783.0,67782.0,2.23690918]
[1717361434977,1e-08,67783.0,67782.0,2.23688782]
[1717361435802,1e-08,67783.0,67782.0,2.19418782]
[1717361436006,1e-08,67783.0,67782.0,2.07058782]
[1717361436235,1e-08,67783.0,67782.0,1.99268782]
[1717361436462,1e-08,67783.0,67782.0,1.59897873]
[1717361436665,0.30385251,67783.0,67782.0,1.59762482]
[1717361437098,0.30385251,67783.0,67782.0,1.30256182]
[1717361437321,0.30385251,67783.0,67782.0,1.32464556]
[1717361437486,0.30385251,67783.0,67782.0,1.30256182]
[1717361437905,0.31385251,67783.0,67782.0,1.30256182]
[1717361438067,0.30385251,67783.0,67782.0,1.14952866]
[1717361438318,0.30385251,67783.0,67782.0,1.3025785]
[1717361438957,1e-08,67783.0,67782.0,1.3025785]
[1717361439156,1e-08,67783.0,67782.0,1.3848785]
[1717361439364,1e-08,67783.0,67782.0,1.3025785]
[1717361440443,1e-08,67783.0,67782.0,1.3201894]
[1717361442332,1e-08,67783.0,67782.0,1.36424331]
[1717361443320,1e-08,67783.0,67782.0,1.65930631]
[1717361443531,1e-08,67783.0,67782.0,1.75930631]
[1717361443945,1e-08,67783.0,67782.0,1.7152524]
[1717361446162,1e-08,67783.0,67782.0,1.6725524]
[1717361446337,1e-08,67783.0,67782.0,1.7152524]
[1717361449519,1e-08,67783.0,67782.0,1.78134235]
[1717361457320,1e-08,67783.0,67782.0,1.7152524]
[1717361457964,1e-08,67783.0,67782.0,1.78134235]
[1717361458209,1e-08,67783.0,67782.0,1.78133539]
[1717361459181,1e-08,67783.0,67782.0,1.71524544]
[1717361461466,1e-08,67783.0,67782.0,2.49022837]
[1717361461679,0.00857,67784.0,67783.0,0.698088]
[1717361461680,1e-08,67784.0,67783.0,0.698088]
[1717361461930,1e-08,67784.0,67783.0,1.39007989]
[1717361462132,1e-08,67784.0,67783.0,1.58019011]
[1717361462343,1e-08,67784.0,67783.0,1.54384261]
[1717361463023,1e-08,67784.0,67783.0,2.06774911]
[1717361463228,1e-08,67784.0,67783.0,2.10474911]
[1717361463444,1e-08,67784.0,67783.0,2.06774911]
[1717361463796,1e-08,67784.0,67783.0,2.10474911]
[1717361464003,0.43733372,67801.0,67800.0,0.147492]
[1717361464004,0.43706063,67801.0,67800.0,0.147492]
[1717361464207,0.2315,67802.0,67801.0,0.14749]
[1717361464384,0.2315,67802.0,67801.0,0.29326791]
[1717361464593,0.2315,67802.0,67801.0,0.52283054]
[1717361464825,0.2315,67802.0,67801.0,0.56553054]
[1717361466078,0.2315,67802.0,67801.0,0.60253054]
[1717361466917,0.2315,67802.0,67801.0,0.63953054]
[1717361467354,0.2951525,67805.0,67804.0,0.147483]
[1717361467699,0.2951525,67805.0,67804.0,0.48900379]
[1717361468280,0.3051525,67805.0,67804.0,0.48900379]
[1717361468580,0.3051525,67805.0,67804.0,0.52600379]
[1717361468581,0.31162563,67805.0,67804.0,0.52600379]
[1717361468791,0.31162563,67805.0,67804.0,0.48330379]
[1717361469015,0.31162563,67805.0,67804.0,0.48900379]
[1717361469393,0.31162563,67805.0,67804.0,0.52600379]
[1717361470411,0.31162563,67805.0,67804.0,0.48330379]
[1717361470641,0.30162563,67805.0,67804.0,0.56300379]
[1717361471158,0.31162563,67805.0,67804.0,0.56300379]
[1717361471787,0.30162563,67805.0,67804.0,0.56300379]
[1717361472157,0.23797313,67805.0,67804.0,0.56300379]
[1717361472360,0.30162563,67805.0,67804.0,0.56300379]
[1717361473876,0.07012563,67805.0,67804.0,0.56300379]
[1717361474093,0.00647313,67805.0,67804.0,0.56300379]
[1717361474267,0.2974525,67807.0,67805.0,0.14748]
[1717361474500,0.3074525,67807.0,67806.0,0.14577791]
[1717361474740,0.3074525,67807.0,67806.0,0.34152079]
[1717361475160,0.3074525,67807.0,67806.0,0.29882079]
[1717361475378,0.3074525,67807.0,67806.0,0.34152079]
[1717361476911,0.3074525,67807.0,67806.0,0.33582079]
[1717361477114,0.3074525,67807.0,67806.0,0.41552079]
[1717361477905,0.3074525,67807.0,67806.0,0.26247791]
[1717361477906,0.31395052,67807.0,67806.0,0.26247791]
[1717361478936,0.31395052,67807.0,67806.0,0.415492]
[1717361479923,0.31395052,67807.0,67806.0,0.26247791]
[1717361480100,0.31395052,67807.0,67806.0,0.41549296]
[1717361480502,0.30395052,67807.0,67806.0,0.41549296]
[1717361480719,0.31395052,67807.0,67806.0,0.41549296]
[1717361481867,0.31395052,67807.0,67806.0,0.37849296]
[1717361482074,0.31395052,67807.0,67806.0,0.41549296]
[1717361483074,0.31395052,67807.0,67806.0,0.37849296]
[1717361483284,0.31395052,67807.0,67806.0,0.41549296]
[1717361483527,0.31395052,67807.0,67806.0,0.37849296]
[1717361483953,0.31395052,67807.0,67806.0,0.56297196]
[1717361484911,0.00649802,67807.0,67806.0,0.79787196]
[1717361485322,5.4e-07,67809.0,67808.0,0.147475]
[1717361485497,5.4e-07,67809.0,67808.0,0.44626796]
[1717361486395,5.4e-07,67809.0,67808.0,0.48896796]
[1717361486969,5.4e-07,67809.0,67808.0,0.52596796]
[1717361487928,5.4e-07,67809.0,67808.0,0.56296796]
[1717361489510,0.00650469,67809.0,67808.0,0.56296796]
[1717361490656,0.00650469,67809.0,67808.0,0.52026796]
[1717361490841,0.00650469,67809.0,67808.0,0.56296796]
[1717361491168,0.00650469,67809.0,67808.0,0.56295208]
[1717361492389,0.07015719,67809.0,67808.0,0.56295208]
[1717361493026,0.00650469,67809.0,67808.0,0.56295208]
[1717361493225,0.07015719,67809.0,67808.0,0.56295208]
[1717361494386,0.00650469,67809.0,67808.0,0.56295208]
[1717361495010,0.00650469,67809.0,67808.0,1.29930208]
[1717361495461,0.00650469,67809.0,67808.0,1.39930208]
[1717361495677,5.4e-07,67809.0,67808.0,1.39930208]
[1717361495886,5.4e-07,67809.0,67808.0,1.69425208]
[1717361496100,5.4e-07,67809.0,67808.0,1.79425208]
[1717361496309,0.14343671,67811.0,67810.0,0.837352]
[1717361496515,0.14343671,67811.0,67810.0,1.48752908]
[1717361497156,0.14343671,67811.0,67810.0,1.53144333]
[1717361497372,0.14343671,67811.0,67810.0,2.07144333]
[1717361497578,0.14343671,67811.0,67810.0,2.10722908]
[1717361498818,0.14343671,67811.0,67810.0,2.06452908]
[1717361499082,0.14343671,67811.0,67810.0,2.10722908]
[1717361499305,0.14343671,67811.0,67810.0,2.14422908]
[1717361501143,0.14343671,67811.0,67810.0,2.14419354]
[1717361504487,0.11647665,67811.0,67810.0,2.10149354]
[1717361504703,0.11647665,67811.0,67810.0,2.14419354]
[1717361505119,0.11647665,67811.0,67810.0,2.1662329]
[1717361507477,0.09877665,67811.0,67810.0,2.1662329]
[1717361508872,0.09877665,67811.0,67810.0,2.14419354]
[1717361509560,0.09877665,67811.0,67810.0,2.17376354]
[1717361510032,0.09877665,67811.0,67810.0,2.13676354]
[1717361510256,0.05602811,67811.0,67810.0,2.45020454]
[1717361510486,0.05602811,67811.0,67810.0,2.62420454]
[1717361510964,0.05602811,67811.0,67810.0,2.47124091]
[1717361511177,0.05602811,67811.0,67810.0,2.62354994]
[1717361511580,0.04002811,67811.0,67810.0,2.62354994]
[1717361511754,0.04002811,67811.0,67810.0,2.58654994]
[1717361511963,0.03824698,67811.0,67810.0,2.55020244]
[1717361512159,0.03824698,67811.0,67810.0,2.58720244]
[1717361512569,0.03824698,67811.0,67810.0,2.62420244]
[1717361512743,0.03824698,67811.0,67810.0,2.62514844]
[1717361513738,0.03910698,67811.0,67810.0,2.62514844]
[1717361514185,0.03910698,67811.0,67810.0,2.63616225]
[1717361514402,0.03910698,67811.0,67810.0,2.67250975]
[1717361514852,0.03910698,67811.0,67810.0,2.70537516]
[1717361515741,0.03910698,67811.0,67810.0,2.66902766]
[1717361516151,0.03910698,67811.0,67810.0,2.62514844]
[1717361516357,0.03910698,67811.0,67810.0,2.66902766]
[1717361516775,0.03910698,67811.0,67810.0,2.51352766]
[1717361516982,0.03910698,67811.0,67810.0,2.28837844]
[1717361517211,0.03910698,67811.0,67810.0,2.27639897]
[1717361517613,0.03910698,67811.0,67810.0,2.29487844]
[1717361517813,0.03910698,67811.0,67810.0,2.22087844]
[1717361518044,0.03910698,67811.0,67810.0,2.23189897]
[1717361518245,0.03910698,67811.0,67810.0,2.26889897]
[1717361518444,0.03910698,67811.0,67810.0,2.29189897]
[1717361519610,0.03910698,67811.0,67810.0,2.25489897]
[1717361519818,0.03910698,67811.0,67810.0,2.31787844]
[1717361520027,0.03910698,67811.0,67810.0,2.36524707]
[1717361520184,0.03910698,67811.0,67810.0,2.35422594]
[1717361520385,0.03910698,67811.0,67810.0,2.31722594]
[1717361520661,0.02757051,67811.0,67810.0,2.35422594]
[1717361521471,0.02757051,67811.0,67810.0,2.39811216]
[1717361522808,0.01657051,67811.0,67810.0,2.35422594]
[1717361523070,0.01657051,67811.0,67810.0,2.39811939]
[1717361523338,0.01657051,67811.0,67810.0,2.35422594]
[1717361524021,0.01657051,67811.0,67810.0,2.31787844]
[1717361524229,0.01657051,67811.0,67810.0,2.51678721]
[1717361525304,0.01657051,67811.0,67810.0,2.65313471]
[1717361525524,0.01657051,67811.0,67810.0,2.83013471]
[1717361526212,0.01657051,67811.0,67810.0,2.89596405]
[1717361526946,0.01657051,67811.0,67810.0,2.83013471]
[1717361527156,0.00857,67814.0,67813.0,0.83732]
[1717361527157,0.00447842,67814.0,67813.0,0.83732]
[1717361527353,0.00447842,67814.0,67813.0,1.30175944]
[1717361528992,0.00447842,67814.0,67813.0,1.25905944]
[1717361529216,0.00447842,67814.0,67813.0,1.34567666]
[1717361529436,0.00447842,67814.0,67813.0,1.38267666]
[1717361529906,0.00447842,67814.0,67813.0,1.41967666]
[1717361530351,0.00447842,67814.0,67813.0,1.28693977]
[1717361530589,0.00447842,67814.0,67813.0,1.39719653]
[1717361530829,0.00447842,67814.0,67813.0,1.63624236]
[1717361531930,0.00447842,67814.0,67813.0,1.43989653]
[1717361532184,0.00447842,67814.0,67813.0,1.70210953]
[1717361532405,0.00447842,67814.0,67813.0,1.5057637]
[1717361532902,0.00447842,67814.0,67813.0,1.70210953]
[1717361533123,0.00447842,67814.0,67813.0,1.5057637]
[1717361533546,0.00447842,67814.0,67813.0,1.70210953]
[1717361533686,0.00447842,67814.0,67813.0,1.5057637]
[1717361533945,0.00447842,67814.0,67813.0,1.70210953]
[1717361534185,0.00447842,67814.0,67813.0,1.43989653]
[1717361534383,0.00447842,67814.0,67813.0,1.63624236]
[1717361535340,0.00856,67823.0,67819.0,0.982353]
[1717361535548,0.00856,67823.0,67819.0,1.34678767]
[1717361535748,0.00856,67823.0,67819.0,1.44678767]
[1717361536371,0.00856,67823.0,67819.0,1.52078767]
[1717361536861,0.00856,67823.0,67819.0,1.47808767]
[1717361537072,0.00856,67823.0,67819.0,1.52078767]
[1717361538455,0.00856,67823.0,67819.0,1.56475841]
[1717361538633,0.00856,67823.0,67819.0,1.95966041]
[1717361538634,0.0239993,67820.0,67819.0,1.95966041]
[1717361538867,0.0239993,67820.0,67819.0,1.92670902]
[1717361539091,0.0239993,67820.0,67819.0,2.00720902]
[1717361539266,0.0239993,67820.0,67819.0,2.07316514]
[1717361540280,0.0239993,67820.0,67819.0,2.00720902]
[1717361540939,0.0239993,67820.0,67819.0,2.08413116]
[1717361541147,0.0239993,67820.0,67819.0,1.99618967]
[1717361545467,0.0239993,67820.0,67819.0,2.15878967]
[1717361545669,0.0239993,67820.0,67819.0,1.99618967]
[1717361546664,0.0248593,67820.0,67819.0,1.99618967]
[1717361546887,0.0248593,67820.0,67819.0,1.91568967]
[1717361547827,0.0248593,67820.0,67819.0,1.52078767]
[1717361548045,0.2622593,67820.0,67819.0,1.63811973]
[1717361550526,0.2622593,67820.0,67819.0,1.59541973]
[1717361550780,0.2622593,67820.0,67819.0,1.63811973]
[1717361552281,0.3259118,67820.0,67819.0,1.63811973]
[1717361553075,0.3259118,67820.0,67819.0,1.72618162]
[1717361554116,0.2622593,67820.0,67819.0,1.72618162]
[1717361557991,0.2622593,67820.0,67819.0,1.63811973]
[1717361558546,0.2622593,67820.0,67819.0,1.72624864]
[1717361558944,0.2622593,67820.0,67819.0,1.63811973]
[1717361565878,0.2622593,67820.0,67819.0,1.48516297]
[1717361566075,0.2622593,67820.0,67819.0,1.63811857]
[1717361567050,0.0248593,67820.0,67819.0,1.63811857]
[1717361569091,0.0248593,67820.0,67819.0,1.59541857]
[1717361569295,0.0248593,67820.0,67819.0,1.63811857]
[1717361570933,0.0248593,67820.0,67819.0,1.74830346]
[1717361572343,0.0248593,67820.0,67819.0,1.63811857]
[1717361573203,0.0248593,67820.0,67819.0,1.74830346]
[1717361575633,0.0248593,67820.0,67819.0,1.63811857]
[1717361576641,0.0248593,67820.0,67819.0,1.74830346]
[1717361590753,0.0248593,67820.0,67819.0,2.28220546]
[1717361590960,0.0248593,67820.0,67819.0,2.17202057]
[1717361591586,0.0248593,67820.0,67819.0,2.12932057]
[1717361591803,0.0248593,67820.0,67819.0,2.17202057]
[1717361593727,0.0248593,67820.0,67819.0,2.12932057]
[1717361593940,0.0248593,67820.0,67819.0,2.17202057]
[1717361600165,0.0248593,67820.0,67819.0,1.97102057]
[1717361600389,0.0248593,67820.0,67819.0,2.01372057]
[1717361608329,0.2658593,67820.0,67819.0,1.93302057]
[1717361609432,0.1013593,67820.0,67819.0,1.93302057]
[1717361609879,0.0248593,67820.0,67819.0,1.93302057]
[1717361615013,0.00856,67823.0,67822.0,0.247444]
[1717361615213,0.00856,67823.0,67822.0,0.70001233]
[1717361616171,0.00856,67823.0,67822.0,0.73701233]
[1717361616581,0.00856,67823.0,67822.0,1.03190133]
[1717361617488,0.00856,67823.0,67822.0,1.06890133]
[1717361623329,0.00856,67823.0,67822.0,0.98076651]
[1717361623528,0.00856,67823.0,67822.0,1.0689353]
[1717361623931,0.00856,67823.0,67822.0,1.06893369]
[1717361624292,0.00856,67823.0,67822.0,0.98076651]
[1717361624861,0.00856,67823.0,67822.0,0.98066651]
[1717361628748,0.00856,67823.0,67822.0,0.93796651]
[1717361628950,0.00856,67823.0,67822.0,0.98066651]
[1717361630219,0.00856,67823.0,67822.0,0.82771091]
[1717361630400,0.00856,67823.0,67822.0,0.98065841]
[1717361631210,0.00856,67823.0,67822.0,0.93795841]
[1717361631412,0.00856,67823.0,67822.0,0.98065841]
[1717361635406,0.0722125,67823.0,67822.0,0.93795841]
[1717361635668,0.0722125,67823.0,67822.0,0.98065841]
[1717361636325,0.1489125,67823.0,67822.0,0.98065841]
[1717361636533,0.08526,67823.0,67822.0,0.98065841]
[1717361636737,0.1489125,67823.0,67822.0,0.98065841]
[1717361636954,0.08526,67823.0,67822.0,0.98065841]
[1717361637387,0.3142125,67823.0,67822.0,0.58586941]
[1717361637595,0.3142125,67823.0,67822.0,0.67405974]
[1717361637809,0.3242125,67823.0,67822.0,0.58586941]
[1717361638016,0.3242125,67823.0,67822.0,0.54316941]
[1717361638233,0.3242125,67823.0,67822.0,0.58586941]
[1717361638442,0.3242125,67823.0,67822.0,0.65201351]
[1717361638658,0.3242125,67823.0,67822.0,0.60931351]
[1717361638863,0.3242125,67823.0,67822.0,0.58631351]
[1717361639101,0.3242125,67823.0,67822.0,0.62901351]
[1717361639948,0.3242125,67823.0,67822.0,0.54222238]
[1717361640164,0.3242125,67823.0,67822.0,0.60696552]
[1717361640588,0.3242125,67823.0,67822.0,0.56286941]
[1717361640765,0.3242125,67823.0,67822.0,0.60696047]
[1717361641198,0.3142125,67823.0,67822.0,0.60696047]
[1717361642046,0.3242125,67823.0,67822.0,0.60696047]
[1717361642255,0.3142125,67823.0,67822.0,0.56286941]
[1717361642475,0.3242125,67823.0,67822.0,0.56286941]
[1717361644131,0.3242125,67823.0,67822.0,0.52016941]
[1717361644336,0.3242125,67823.0,67822.0,0.56286941]
[1717361644545,0.3242125,67823.0,67822.0,0.60695092]
[1717361645902,0.3242125,67823.0,67822.0,0.62900412]
[1717361646130,0.3242125,67823.0,67822.0,0.60695092]
[1717361648213,0.3242125,67823.0,67822.0,0.56425092]
[1717361648442,0.3242125,67823.0,67822.0,0.60695092]
[1717361648884,0.3242125,67823.0,67822.0,0.60789692]
[1717361649350,0.3242125,67823.0,67822.0,0.56381541]
[1717361649591,0.3242125,67823.0,67822.0,0.56382717]
[1717361653541,0.3242125,67823.0,67822.0,0.37368317]
[1717361654446,0.3242125,67823.0,67822.0,0.22072391]
[1717361654659,0.3242125,67823.0,67822.0,0.037946]
[1717361654869,0.3242125,67823.0,67822.0,0.074946]
[1717361655528,0.3242125,67823.0,67822.0,0.037946]
[1717361656182,0.3242125,67823.0,67822.0,0.074946]
[1717361697906,0.0822125,67823.0,67822.0,0.074946]
[1717361699293,0.12642283,67823.0,67822.0,0.074946]
[1717361708875,0.12642283,67823.0,67822.0,0.22072391]
[1717361709117,0.11642283,67823.0,67822.0,0.41462391]
[1717361709340,0.11642283,67823.0,67822.0,0.64036791]
[1717361709567,0.11642283,67823.0,67822.0,0.77807384]
[1717361709568,0.0722125,67823.0,67822.0,0.77807384]
[1717361709800,0.0822125,67823.0,67822.0,0.77807384]
[1717361710148,0.0822125,67823.0,67822.0,0.74107384]
[1717361710384,0.0822125,67823.0,67822.0,0.70407384]
[1717361710557,0.0822125,67823.0,67822.0,0.77807384]
[1717361710981,0.0822125,67823.0,67822.0,0.70407384]
[1717361711384,0.0822125,67823.0,67822.0,0.77807384]
[1717361711835,0.0822125,67823.0,67822.0,0.74107384]
[1717361711999,0.0822125,67823.0,67822.0,0.77807384]
[1717361712210,0.0822125,67823.0,67822.0,0.73537384]
[1717361712628,0.0822125,67823.0,67822.0,0.56092984]
[1717361713060,0.0822125,67823.0,67822.0,0.59792984]
[1717361719541,0.0772125,67823.0,67822.0,0.59792984]
[1717361722117,0.0772125,67823.0,67822.0,0.35842984]
[1717361723249,0.0772125,67823.0,67822.0,0.22072391]
[1717361733824,0.3092125,67823.0,67822.0,0.22072391]
[1717361734020,0.3519125,67823.0,67822.0,0.074946]
[1717361735481,0.4993545,67823.0,67822.0,0.037946]
[1717361735729,0.4993545,67823.0,67822.0,0.000946]
[1717361735881,0.4993545,67823.0,67822.0,0.037946]
[1717361736090,0.5003545,67823.0,67822.0,0.074946]
[1717361736298,0.4576545,67823.0,67822.0,0.111946]
[1717361736520,0.4576545,67823.0,67822.0,0.074946]
[1717361736521,0.4566545,67823.0,67822.0,0.074946]
[1717361736717,0.4993545,67823.0,67822.0,0.074946]
[1717361736946,0.4993545,67823.0,67822.0,0.111946]
[1717361737903,0.4566545,67823.0,67822.0,0.111946]
[1717361738117,0.4566545,67823.0,67822.0,0.25772391]
[1717361738118,0.0772125,67823.0,67822.0,0.25772391]
[1717361768338,0.0772125,67823.0,67822.0,0.40800184]
[1717361769593,0.0772125,67823.0,67822.0,0.40789298]
[1717361771137,0.0772125,67823.0,67822.0,0.40790858]
[1717361772932,0.0772125,67823.0,67822.0,0.25772391]
[1717361773481,0.0772125,67823.0,67822.0,0.4076078]
[1717361789346,0.0772125,67823.0,67822.0,0.4857078]
[1717361790529,0.00356,67823.0,67822.0,0.6331518]
[1717361790733,0.00356,67823.0,67822.0,0.8327518]
[1717361793179,0.03950686,67824.0,67823.0,0.380042]
[1717361793377,0.03950686,67824.0,67823.0,0.6757038]
[1717361794066,0.04950686,67824.0,67823.0,0.6757038]
[1717361794268,0.04950686,67824.0,67823.0,0.7127038]
[1717361794473,0.04950686,67824.0,67823.0,0.7924038]
[1717361794675,0.03950686,67824.0,67823.0,0.7924038]
[1717361795704,0.03950686,67824.0,67823.0,0.7554038]
[1717361796111,0.03950686,67824.0,67823.0,0.7924038]
[1717361796521,0.03950686,67824.0,67823.0,0.7554038]
[1717361796763,0.03950686,67824.0,67823.0,0.7924038]
[1717361796969,0.03950686,67824.0,67823.0,0.7554038]
[1717361797209,0.03950686,67824.0,67823.0,0.7924038]
[1717361797771,0.03950686,67824.0,67823.0,0.8294038]
[1717361799342,0.03950686,67825.0,67824.0,0.14744]
[1717361799495,0.03950686,67825.0,67824.0,0.5660018]
[1717361800578,0.03950686,67827.0,67826.0,0.227636]
[1717361800807,0.03950686,67827.0,67826.0,0.5232978]
[1717361801586,0.04950686,67827.0,67826.0,0.5232978]
[1717361801800,0.04950686,67827.0,67826.0,0.5602978]
[1717361801996,0.04950686,67827.0,67826.0,0.5972978]
[1717361810494,0.04950686,67827.0,67826.0,0.6399978]
[1717361811499,0.03950686,67827.0,67826.0,0.6399978]
[1717361813353,0.04036686,67827.0,67826.0,0.6399978]
[1717361813939,0.04036686,67827.0,67826.0,0.7965978]
[1717361814958,0.00086,67827.0,67826.0,0.7965978]
[1717361815186,0.04036686,67827.0,67826.0,0.7965978]
[1717361816144,0.04036686,67827.0,67826.0,0.64671391]
[1717361816359,0.04036686,67827.0,67826.0,0.79967946]
[1717361820440,0.00086,67827.0,67826.0,0.79967946]
[1717361820573,0.04036686,67827.0,67826.0,0.75697946]
[1717361820779,0.05036686,67827.0,67826.0,0.79967946]
[1717361821206,0.04036686,67827.0,67826.0,0.79967946]
[1717361822359,0.00086,67827.0,67826.0,0.79967946]
[1717361822670,0.04036686,67827.0,67826.0,0.79967946]
[1717361823071,0.00086,67827.0,67826.0,0.79967946]
[1717361823320,0.04036686,67827.0,67826.0,0.79967946]
[1717361823712,0.00086,67827.0,67826.0,0.79967946]
[1717361824136,0.04036686,67827.0,67826.0,0.79967946]
[1717361824802,0.04036686,67827.0,67826.0,0.75697946]
[1717361825002,0.04036686,67827.0,67826.0,0.79967946]
[1717361825678,0.00086,67827.0,67826.0,0.79967946]
[1717361826745,0.04036686,67827.0,67826.0,0.79967946]
[1717361826958,0.00086,67827.0,67826.0,0.56287946]
[1717361827170,0.00086,67827.0,67826.0,0.79447946]
[1717361828648,0.04036686,67827.0,67826.0,0.79447946]
[1717361828857,0.04036686,67827.0,67826.0,0.75177946]
[1717361829064,0.04036686,67827.0,67826.0,0.79447946]
[1717361829964,0.05036686,67827.0,67826.0,0.79447946]
[1717361830172,0.04036686,67827.0,67826.0,0.79447946]
[1717361830573,0.04036686,67827.0,67826.0,0.75177946]
[1717361830773,0.04036686,67827.0,67826.0,0.79447946]
[1717361838790,0.00086,67827.0,67826.0,0.79447946]
[1717361840304,0.00086,67827.0,67826.0,0.75747946]
[1717361841280,0.00086,67827.0,67826.0,0.79447946]
[1717361845623,0.00086,67827.0,67826.0,0.75747946]
[1717361846972,0.00086,67827.0,67826.0,0.79447946]
[1717361847411,0.00086,67827.0,67826.0,0.75747946]
[1717361847621,0.00086,67827.0,67826.0,0.79447946]
[1717361848133,0.00086,67827.0,67826.0,0.75177946]
[1717361848358,0.00086,67827.0,67826.0,0.79447946]
[1717361849989,0.00086,67827.0,67826.0,1.08935146]
[1717361850887,0.00086,67827.0,67826.0,1.11139896]
[1717361853833,0.00086,67827.0,67826.0,1.13338496]
[1717361854256,0.00086,67827.0,67826.0,1.08935146]
[1717361854428,0.00086,67827.0,67826.0,1.13338496]
[1717361855270,0.00086,67827.0,67826.0,1.08935146]
[1717361860920,0.00086,67827.0,67826.0,1.05235146]
[1717361861328,0.00086,67827.0,67826.0,1.08935146]
[1717361861943,0.00086,67827.0,67826.0,1.07439558]
[1717361863324,0.00086,67827.0,67826.0,1.11139558]
[1717361863970,0.00086,67827.0,67826.0,0.93638591]
[1717361864184,0.00068255,67827.0,67826.0,1.08933075]
[1717361866997,0.00068255,67827.0,67826.0,1.23335089]
[1717361867411,0.00068255,67827.0,67826.0,1.18933075]
[1717361867720,0.00068255,67827.0,67826.0,1.25536097]
[1717361869364,0.00068255,67827.0,67826.0,1.44536097]
[1717361870304,0.00068255,67827.0,67826.0,1.79536097]
[1717361872149,0.00068255,67827.0,67826.0,2.09023297]
[1717361878273,0.00068255,67827.0,67826.0,2.02420275]
[1717361880515,0.00068255,67827.0,67826.0,1.98150275]
[1717361880718,0.00068255,67827.0,67826.0,2.02420275]
[1717361881508,0.00068255,67827.0,67826.0,2.11224304]
[1717361882610,0.00068255,67827.0,67826.0,2.06954304]
[1717361883226,0.00068255,67827.0,67826.0,2.11318904]
[1717361888563,0.00068255,67827.0,67826.0,2.07048904]
[1717361888763,0.00068255,67827.0,67826.0,2.11318904]
[1717361889378,0.00068255,67827.0,67826.0,1.87220391]
[1717361889590,0.00068255,67827.0,67826.0,2.02513788]
[1717361891359,0.00068255,67827.0,67826.0,2.11320157]
[1717361891557,0.28238941,67827.0,67826.0,0.58714646]
[1717361891958,0.28238941,67827.0,67826.0,0.52109388]
[1717361892283,0.23288255,67827.0,67826.0,0.52109388]
[1717361893349,0.23288255,67827.0,67826.0,0.52679388]
[1717361893573,0.23288255,67827.0,67826.0,0.56379388]
[1717361893781,0.27238941,67827.0,67826.0,0.48409388]
[1717361893992,0.27238941,67827.0,67826.0,0.52679388]
[1717361894197,0.28238941,67827.0,67826.0,0.56379388]
[1717361894515,0.27238941,67827.0,67826.0,0.56379388]
[1717361894715,0.28238941,67827.0,67826.0,0.52109388]
[1717361894954,0.28238941,67827.0,67826.0,0.52679388]
[1717361895130,0.28238941,67827.0,67826.0,0.56379388]
[1717361895329,0.27238941,67827.0,67826.0,0.56379388]
[1717361896048,0.28238941,67827.0,67826.0,0.56379388]
[1717361896974,0.23288255,67827.0,67826.0,0.56379388]
[1717361897174,0.27238941,67827.0,67826.0,0.56379388]
[1717361897475,0.00068255,67827.0,67826.0,0.56379388]
[1717361898135,0.00068255,67827.0,67826.0,0.71379388]
[1717361899093,0.00068255,67827.0,67826.0,0.75783889]
[1717361899503,0.00068255,67827.0,67826.0,0.71379388]
[1717361900872,0.04018941,67827.0,67826.0,0.71379388]
[1717361901548,0.00068255,67827.0,67826.0,0.71379388]
[1717361901870,0.04018941,67827.0,67826.0,0.71379388]
[1717361901999,0.00068255,67827.0,67826.0,0.71379388]
[1717361902203,0.04018941,67827.0,67826.0,0.71379388]
[1717361904320,0.00068255,67827.0,67826.0,0.71379388]
[1717361905028,0.04018941,67827.0,67826.0,0.71379388]
[1717361906393,0.05018941,67827.0,67826.0,0.71379388]
[1717361911610,0.28878941,67827.0,67826.0,0.67109388]
[1717361913880,0.28878941,67827.0,67826.0,0.52365788]
[1717361917940,0.28878941,67827.0,67826.0,0.67109388]
[1717361929500,0.04018941,67827.0,67826.0,0.67109388]
[1717361929714,0.04018941,67827.0,67826.0,0.75219388]
[1717361933201,0.04018941,67827.0,67826.0,0.67109388]
[1717361938456,0.05018941,67827.0,67826.0,0.67109388]
[1717361938669,0.04018941,67827.0,67826.0,0.67109388]
[1717361940487,0.05018941,67827.0,67826.0,0.67109388]
[1717361942290,0.04018941,67827.0,67826.0,0.67109388]
[1717361942700,0.00068255,67827.0,67826.0,0.74769388]
[1717361943007,0.00068255,67827.0,67826.0,0.90889388]
[1717361950849,0.00068255,67827.0,67826.0,1.25889388]
[1717361951501,0.00068255,67827.0,67826.0,1.32494718]
[1717361951755,0.00068255,67827.0,67826.0,1.36764718]
[1717361951973,0.00068255,67827.0,67826.0,1.40159388]
[1717361952424,0.00068255,67827.0,67826.0,1.48966495]
[1717361952636,0.00068255,67827.0,67826.0,1.78453695]
[1717361952846,0.00068255,67827.0,67826.0,2.17930895]
[1717361953097,0.00857,67832.0,67831.0,0.632275]
[1717361953301,0.00857,67832.0,67831.0,1.24820761]
[1717361953509,0.00857,67832.0,67831.0,1.27021797]
[1717361953917,0.00857,67832.0,67831.0,1.20418688]
[1717361954332,0.00857,67832.0,67831.0,1.28518942]
[1717361954841,0.00857,67832.0,67831.0,1.32218942]
[1717361955294,0.00857,67832.0,67831.0,1.35918942]
[1717361955779,0.00857,67832.0,67831.0,1.32218942]
[1717361955923,0.00857,67832.0,67831.0,1.35918942]
[1717361957444,0.00857,67832.0,67831.0,1.31518688]
[1717361964785,0.00857,67832.0,67831.0,1.70993688]
[1717361964989,0.00857,67835.0,67834.0,0.792255]
[1717361965197,0.00857,67835.0,67834.0,1.47526688]
[1717361965323,0.00857,67835.0,67834.0,1.57516688]
[1717361966340,0.00857,67835.0,67834.0,1.87000388]